fUSD/lending_fUSD_20240515
["ID","MTS","AMOUNT","RATE_DAILY","PERIOD"]
[327080966,1715795433242,-1648.77,0.00011888,2]
[327080967,1715795433251,-323.48239389,0.00011888,2]
[327080968,1715795433261,-500.0,0.00011888,2]
[327080969,1715795433270,-1693.2,0.00011888,2]
[327080970,1715795433280,-183.05942095,0.00011889,2]
[327080971,1715795433289,-500.0,0.00011889,2]
[327080972,1715795433298,-500.0,0.00011889,2]
[327080973,1715795433308,-500.0,0.00011889,2]
[327080974,1715795433318,-500.0,0.00011889,2]
[327080975,1715795433327,-500.0,0.00011889,2]
[327080976,1715795433336,-391.36082151,0.00011889,2]
[327080977,1715795433345,-500.0,0.00011889,2]
[327080978,1715795433354,-504.64,0.00011889,2]
[327080979,1715795433365,-500.0,0.00011889,2]
[327080980,1715795433374,-500.0,0.00011889,2]
[327080981,1715795433383,-500.0,0.00011889,2]
[327080982,1715795433392,-151.0,0.00011889,2]
[327080983,1715795433402,-500.0,0.00011889,2]
[327080984,1715795433411,-500.0,0.00011889,2]
[327080985,1715795433420,-2515.69,0.00011889,2]
[327080986,1715795433430,-765.450737,0.00011889,2]
[327080987,1715795433439,-500.0,0.00011889,2]
[327080988,1715795433449,-765.450737,0.00011889,2]
[327080989,1715795433458,-151.0,0.00011889,2]
[327080990,1715795433468,-151.0,0.00011889,2]
[327080991,1715795433479,-151.0,0.00011889,2]
[327080992,1715795433488,-151.0,0.00011889,2]
[327080993,1715795433497,-834.77,0.00011889,2]
[327080994,1715795433507,-151.0,0.00011889,2]
[327080995,1715795433517,-218.979978,0.00011889,2]
[327080996,1715795433526,-500.0,0.00011889,2]
[327080997,1715795433535,-153.545952,0.00011889,2]
[327080998,1715795433546,-151.0,0.00011889,2]
[327080999,1715795433556,-500.0,0.00011889,2]
[327081000,1715795433566,-500.0,0.00011889,2]
[327081001,1715795433575,-151.0,0.00011889,2]
[327081002,1715795433584,-1080.863667,0.00011889,2]
[327081003,1715795433594,-1080.863667,0.00011889,2]
[327081004,1715795433603,-549.075535,0.00011889,2]
[327081005,1715795433613,-228.829077,0.00011889,2]
[327081006,1715795433623,-549.075535,0.00011889,2]
[327081007,1715795433632,-228.829077,0.00011889,2]
[327081008,1715795433646,-500.0,0.00011889,2]
[327081009,1715795433656,-500.0,0.00011889,2]
[327081010,1715795433665,-151.0,0.00011889,2]
[327081011,1715795433675,-500.0,0.00011889,2]
[327081012,1715795433685,-151.0,0.00011889,2]
[327081013,1715795433695,-151.0,0.00011889,2]
[327081014,1715795433704,-246.985208,0.00011889,2]
[327081015,1715795433714,-3249.337321,0.00011889,2]
[327081016,1715795433726,-77253.45419065,0.0001189,2]
[327081017,1715795433737,-216.24507965,0.0001189,2]
[327081018,1715795433746,-151.0,0.0001189,2]
[327081019,1715795433756,-253.776587,0.0001189,2]
[327081020,1715795433765,-151.0,0.0001189,2]
[327081021,1715795433774,-253.776587,0.0001189,2]
[327081022,1715795433784,-151.0,0.0001189,2]
[327081023,1715795433793,-151.0,0.0001189,2]
[327081024,1715795433803,-211.531233,0.0001189,2]
[327081025,1715795433812,-211.531233,0.0001189,2]
[327081026,1715795433822,-151.0,0.0001189,2]
[327081027,1715795433831,-232.671246,0.0001189,2]
[327081028,1715795433840,-232.671246,0.0001189,2]
[327081029,1715795433850,-151.0,0.0001189,2]
[327081030,1715795433859,-151.0,0.0001189,2]
[327081031,1715795433869,-152.410268,0.0001189,2]
[327081032,1715795433878,-151.0,0.0001189,2]
[327081033,1715795433887,-270.101528,0.0001189,2]
[327081034,1715795433897,-151.0,0.0001189,2]
[327081035,1715795433906,-185.689765,0.0001189,2]
[327081036,1715795433915,-185.689765,0.0001189,2]
[327081037,1715795433924,-151.0,0.0001189,2]
[327081038,1715795433934,-340.630876,0.0001189,2]
[327081039,1715795433943,-151.0,0.0001189,2]
[327081040,1715795433953,-340.630876,0.0001189,2]
[327081041,1715795433962,-151.0,0.0001189,2]
[327081042,1715795433972,-289.889808,0.0001189,2]
[327081043,1715795433983,-289.889808,0.0001189,2]
[327081044,1715795433993,-258.53191,0.0001189,2]
[327081045,1715795434003,-258.53191,0.0001189,2]
[327081046,1715795434012,-1727.802977,0.0001189,2]
[327081047,1715795434022,-240.797916,0.0001189,2]
[327081048,1715795434031,-1727.802977,0.0001189,2]
[327081049,1715795434041,-240.797916,0.0001189,2]
[327081050,1715795434050,-163.267617,0.0001189,2]
[327081051,1715795434060,-163.267617,0.0001189,2]
[327081052,1715795434071,-278.54746,0.0001189,2]
[327081053,1715795434080,-156.234681,0.0001189,2]
[327081054,1715795434090,-151.0,0.0001189,2]
[327081055,1715795434099,-156.234681,0.0001189,2]
[327081056,1715795434109,-151.0,0.0001189,2]
[327081057,1715795434118,-550.601069,0.0001189,2]
[327081058,1715795434127,-550.601069,0.0001189,2]
[327081059,1715795434137,-2929.978951,0.0001189,2]
[327081060,1715795434146,-2929.978951,0.0001189,2]
[327081061,1715795434156,-151.114625,0.0001189,2]
[327081062,1715795434166,-765.450737,0.0001189,2]
[327081063,1715795434175,-765.450737,0.0001189,2]
[327081064,1715795434184,-151.0,0.0001189,2]
[327081065,1715795434193,-151.0,0.0001189,2]
[327081066,1715795434203,-151.0,0.0001189,2]
[327081067,1715795434212,-151.0,0.0001189,2]
[327081068,1715795434221,-151.0,0.0001189,2]
[327081069,1715795434232,-151.0,0.0001189,2]
[327081070,1715795434241,-1080.863667,0.0001189,2]
[327081071,1715795434250,-1080.863667,0.0001189,2]
[327081072,1715795434259,-549.075535,0.0001189,2]
[327081073,1715795434268,-228.829077,0.0001189,2]
[327081074,1715795434278,-549.075535,0.0001189,2]
[327081075,1715795434287,-228.829077,0.0001189,2]
[327081076,1715795434297,-151.0,0.0001189,2]
[327081077,1715795434306,-8840.97638893,0.0001189,2]
[327081078,1715795434315,-151.0,0.0001189,2]
[327081079,1715795434325,-151.0,0.0001189,2]
[327081080,1715795434334,-196.04475242,0.0001189,2]
[327081081,1715795434343,-246.985208,0.0001189,2]
[327081082,1715795434353,-3249.337321,0.0001189,2]
[327081083,1715795434362,-500.0,0.00011893,2]
[327081084,1715795434372,-500.0,0.00011893,2]
[327081085,1715795434381,-500.0,0.00011893,2]
[327081086,1715795434390,-500.0,0.00011893,2]
[327081087,1715795434399,-500.0,0.00011893,2]
[327081088,1715795434409,-500.0,0.00011893,2]
[327081089,1715795434419,-151.0,0.00011894,2]
[327081090,1715795434428,-253.776587,0.00011894,2]
[327081091,1715795434438,-253.776587,0.00011894,2]
[327081092,1715795434447,-151.0,0.00011894,2]
[327081093,1715795434457,-151.0,0.00011894,2]
[327081094,1715795434466,-211.531233,0.00011894,2]
[327081095,1715795434476,-211.531233,0.00011894,2]
[327081096,1715795434485,-151.0,0.00011894,2]
[327081097,1715795434495,-232.671246,0.00011894,2]
[327081098,1715795434504,-232.671246,0.00011894,2]
[327081099,1715795434514,-151.0,0.00011894,2]
[327081100,1715795434523,-151.0,0.00011894,2]
[327081101,1715795434533,-151.0,0.00011894,2]
[327081102,1715795434542,-151.0,0.00011894,2]
[327081103,1715795434552,-185.689765,0.00011894,2]
[327081104,1715795434561,-185.689765,0.00011894,2]
[327081105,1715795434571,-151.0,0.00011894,2]
[327081106,1715795434581,-19443.3512221,0.00011894,2]
[327081107,1715795434591,-340.630876,0.00011894,2]
[327081108,1715795434600,-340.630876,0.00011894,2]
[327081109,1715795434610,-151.0,0.00011894,2]
[327081110,1715795434619,-289.889808,0.00011894,2]
[327081111,1715795434630,-289.889808,0.00011894,2]
[327081112,1715795434640,-258.53191,0.00011894,2]
[327081113,1715795434654,-258.53191,0.00011894,2]
[327081114,1715795434664,-1727.802977,0.00011894,2]
[327081115,1715795434675,-240.797916,0.00011894,2]
[327081116,1715795434685,-1727.802977,0.00011894,2]
[327081117,1715795434695,-240.797916,0.00011894,2]
[327081118,1715795434704,-42884.0316461,0.00011894,2]
[327081119,1715795434713,-163.267617,0.00011894,2]
[327081120,1715795434725,-163.267617,0.00011894,2]
[327081121,1715795434735,-156.234681,0.00011894,2]
[327081122,1715795434745,-273.353561,0.00011894,2]
[327081123,1715795434755,-156.234681,0.00011894,2]
[327081124,1715795434765,-151.0,0.00011894,2]
[327081125,1715795434775,-151.0,0.00011894,2]
[327081126,1715795434784,-550.601069,0.00011894,2]
[327081127,1715795434794,-550.601069,0.00011894,2]
[327081128,1715795434804,-2929.978951,0.00011894,2]
[327081129,1715795434813,-2929.978951,0.00011894,2]
[327081130,1715795434822,-765.450737,0.00011894,2]
[327081131,1715795434833,-765.450737,0.00011894,2]
[327081132,1715795434842,-765.450737,0.00011894,2]
[327081133,1715795434852,-765.450737,0.00011894,2]
[327081134,1715795434862,-151.0,0.00011894,2]
[327081135,1715795434871,-151.0,0.00011894,2]
[327081136,1715795434881,-151.0,0.00011894,2]
[327081137,1715795434891,-151.0,0.00011894,2]
[327081138,1715795434900,-203.033234,0.00011894,2]
[327081139,1715795434910,-151.0,0.00011894,2]
[327081140,1715795434920,-151.0,0.00011894,2]
[327081141,1715795434930,-151.0,0.00011894,2]
[327081142,1715795434939,-179.443217,0.00011894,2]
[327081143,1715795434949,-229.215054,0.00011894,2]
[327081144,1715795434958,-1080.863667,0.00011894,2]
[327081145,1715795434968,-1080.863667,0.00011894,2]
[327081146,1715795434979,-1080.863667,0.00011894,2]
[327081147,1715795434988,-1080.863667,0.00011894,2]
[327081148,1715795434998,-549.075535,0.00011894,2]
[327081149,1715795435007,-549.075535,0.00011894,2]
[327081150,1715795435016,-228.829077,0.00011894,2]
[327081151,1715795435026,-228.829077,0.00011894,2]
[327081152,1715795435035,-549.075535,0.00011894,2]
[327081153,1715795435044,-549.075535,0.00011894,2]
[327081154,1715795435054,-228.829077,0.00011894,2]
[327081155,1715795435064,-228.829077,0.00011894,2]
[327081156,1715795435073,-151.0,0.00011894,2]
[327081157,1715795435083,-151.0,0.00011894,2]
[327081158,1715795435092,-202.0,0.00011894,2]
[327081159,1715795435102,-151.0,0.00011894,2]
[327081160,1715795435111,-151.0,0.00011894,2]
[327081161,1715795435121,-246.985208,0.00011894,2]
[327081162,1715795435130,-246.985208,0.00011894,2]
[327081163,1715795435139,-3249.337321,0.00011894,2]
[327081164,1715795435148,-3249.337321,0.00011894,2]
[327081165,1715795435158,-200.0,0.00011894,2]
[327081166,1715795435167,-1000.0,0.00011894,2]
[327081167,1715795435176,-500.0,0.00011894,2]
[327081168,1715795435186,-216.24507965,0.00011895,2]
[327081169,1715795435196,-168.52457004,0.00011898,2]
[327081170,1715795435205,-500.0,0.00011898,2]
[327081171,1715795435215,-479.55936622,0.00011898,2]
[327081172,1715795435225,-500.0,0.00011898,2]
[327081173,1715795435234,-10000.0,0.00011899,2]
[327081174,1715795435243,-207.58542229,0.00011899,2]
[327081175,1715795435252,-5865.7372962,0.00011899,2]
[327081176,1715795435262,-445.96288343,0.00011899,2]
[327081177,1715795435271,-1399.66,0.00011899,2]
[327081178,1715795435280,-500.0,0.00011899,2]
[327081179,1715795435292,-500.0,0.00011899,2]
[327081180,1715795435301,-500.0,0.00011899,2]
[327081181,1715795435310,-151.0,0.00011899,2]
[327081182,1715795435319,-162.155111,0.00011899,2]
[327081183,1715795435330,-500.0,0.00011899,2]
[327081184,1715795435340,-151.0,0.00011899,2]
[327081185,1715795435349,-500.0,0.00011899,2]
[327081186,1715795435358,-500.0,0.00011899,2]
[327081187,1715795435368,-170.65,0.00011899,2]
[327081188,1715795435381,-500.0,0.00011899,2]
[327081189,1715795435391,-458.87555676,0.00011899,2]
[327081190,1715795435401,-500.0,0.00011899,2]
[327081191,1715795435410,-500.0,0.00011899,2]
[327081192,1715795435420,-151.0,0.00011899,2]
[327081193,1715795435429,-151.0,0.00011899,2]
[327081194,1715795435439,-151.0,0.00011899,2]
[327081195,1715795435449,-151.0,0.00011899,2]
[327081196,1715795435459,-151.0,0.00011899,2]
[327081197,1715795435469,-253.776587,0.00011899,2]
[327081198,1715795435479,-253.776587,0.00011899,2]
[327081199,1715795435488,-151.0,0.00011899,2]
[327081200,1715795435497,-500.0,0.00011899,2]
[327081201,1715795435506,-151.0,0.00011899,2]
[327081202,1715795435516,-500.0,0.00011899,2]
[327081203,1715795435526,-211.531233,0.00011899,2]
[327081204,1715795435535,-211.531233,0.00011899,2]
[327081205,1715795435545,-1101.6,0.00011899,2]
[327081206,1715795435554,-161.623208,0.00011899,2]
[327081207,1715795435564,-232.671246,0.00011899,2]
[327081208,1715795435573,-232.671246,0.00011899,2]
[327081209,1715795435583,-562.1947245,0.00011899,2]
[327081210,1715795435592,-151.0,0.00011899,2]
[327081211,1715795435601,-151.0,0.00011899,2]
[327081212,1715795435611,-151.0,0.00011899,2]
[327081213,1715795435620,-509.09663062,0.00011899,2]
[327081214,1715795435631,-151.0,0.00011899,2]
[327081215,1715795435642,-185.689765,0.00011899,2]
[327081216,1715795435655,-185.689765,0.00011899,2]
[327081217,1715795435665,-174.105875,0.00011899,2]
[327081218,1715795435676,-525.18009004,0.00011899,2]
[327081219,1715795435686,-340.630876,0.00011899,2]
[327081220,1715795435697,-340.630876,0.00011899,2]
[327081221,1715795435708,-151.0,0.00011899,2]
[327081222,1715795435720,-289.889808,0.00011899,2]
[327081223,1715795435731,-289.889808,0.00011899,2]
[327081224,1715795435741,-258.53191,0.00011899,2]
[327081225,1715795435751,-258.53191,0.00011899,2]
[327081226,1715795435760,-500.0,0.00011899,2]
[327081227,1715795435770,-1727.802977,0.00011899,2]
[327081228,1715795435780,-240.797916,0.00011899,2]
[327081229,1715795435790,-1727.802977,0.00011899,2]
[327081230,1715795435800,-500.0,0.00011899,2]
[327081231,1715795435809,-537.28376765,0.00011899,2]
[327081232,1715795435819,-240.797916,0.00011899,2]
[327081233,1715795435829,-500.0,0.00011899,2]
[327081234,1715795435839,-166.29502854,0.00011899,2]
[327081235,1715795435848,-163.267617,0.00011899,2]
[327081236,1715795435858,-163.267617,0.00011899,2]
[327081237,1715795435868,-163.267617,0.00011899,2]
[327081238,1715795435878,-163.267617,0.00011899,2]
[327081239,1715795435887,-156.234681,0.00011899,2]
[327081240,1715795435897,-156.234681,0.00011899,2]
[327081241,1715795435908,-500.0,0.00011899,2]
[327081242,1715795435917,-156.234681,0.00011899,2]
[327081243,1715795435927,-156.234681,0.00011899,2]
[327081244,1715795435937,-500.0,0.00011899,2]
[327081245,1715795435947,-151.0,0.00011899,2]
[327081246,1715795435956,-550.601069,0.00011899,2]
[327081247,1715795435966,-550.601069,0.00011899,2]
[327081248,1715795435975,-550.601069,0.00011899,2]
[327081249,1715795435985,-550.601069,0.00011899,2]
[327081250,1715795435995,-2929.978951,0.00011899,2]
[327081251,1715795436004,-2929.978951,0.00011899,2]
[327081252,1715795436013,-2515.69,0.00011899,2]
[327081253,1715795436023,-2929.978951,0.00011899,2]
[327081254,1715795436034,-2929.978951,0.00011899,2]
[327081255,1715795436043,-765.450737,0.00011899,2]
[327081256,1715795436053,-500.0,0.00011899,2]
[327081257,1715795436062,-500.0,0.00011899,2]
[327081258,1715795436072,-765.450737,0.00011899,2]
[327081259,1715795436082,-500.0,0.00011899,2]
[327081260,1715795436091,-500.0,0.00011899,2]
[327081261,1715795436100,-514.69217731,0.00011899,2]
[327081262,1715795436110,-301.120175,0.00011899,2]
[327081263,1715795436121,-500.0,0.00011899,2]
[327081264,1715795436130,-151.0,0.00011899,2]
[327081265,1715795436140,-151.0,0.00011899,2]
[327081266,1715795436150,-500.0,0.00011899,2]
[327081267,1715795436159,-500.0,0.00011899,2]
[327081268,1715795436169,-500.0,0.00011899,2]
[327081269,1715795436327,-151.0,0.00011899,2]
[327081270,1715795436337,-265.840048,0.00011899,2]
[327081271,1715795436346,-500.0,0.00011899,2]
[327081272,1715795436356,-834.77,0.00011899,2]
[327081273,1715795436365,-500.0,0.00011899,2]
[327081274,1715795436375,-364.65615017,0.00011899,2]
[327081275,1715795436385,-500.0,0.00011899,2]
[327081276,1715795436394,-430.65,0.00011899,2]
[327081277,1715795436404,-500.0,0.00011899,2]
[327081278,1715795436413,-500.0,0.00011899,2]
[327081279,1715795436423,-500.0,0.00011899,2]
[327081280,1715795436432,-500.0,0.00011899,2]
[327081281,1715795436442,-500.0,0.00011899,2]
[327081282,1715795436451,-1080.863667,0.00011899,2]
[327081283,1715795436461,-1080.863667,0.00011899,2]
[327081284,1715795436470,-1080.863667,0.00011899,2]
[327081285,1715795436481,-1080.863667,0.00011899,2]
[327081286,1715795436490,-549.075535,0.00011899,2]
[327081287,1715795436500,-500.0,0.00011899,2]
[327081288,1715795436510,-549.075535,0.00011899,2]
[327081289,1715795436519,-228.829077,0.00011899,2]
[327081290,1715795436529,-228.829077,0.00011899,2]
[327081291,1715795436539,-549.075535,0.00011899,2]
[327081292,1715795436548,-549.075535,0.00011899,2]
[327081293,1715795436557,-500.0,0.00011899,2]
[327081294,1715795436567,-228.829077,0.00011899,2]
[327081295,1715795436576,-228.829077,0.00011899,2]
[327081296,1715795436586,-1648.77,0.00011899,2]
[327081297,1715795436595,-500.0,0.00011899,2]
[327081298,1715795436604,-500.0,0.00011899,2]
[327081299,1715795436614,-151.0,0.00011899,2]
[327081300,1715795436624,-151.0,0.00011899,2]
[327081301,1715795436633,-1693.2,0.00011899,2]
[327081302,1715795436648,-246.21166,0.00011899,2]
[327081303,1715795436658,-500.0,0.00011899,2]
[327081304,1715795436667,-246.985208,0.00011899,2]
[327081305,1715795436677,-246.985208,0.00011899,2]
[327081306,1715795436689,-3249.337321,0.00011899,2]
[327081307,1715795436698,-3249.337321,0.00011899,2]
[327081308,1715795436708,-1179.83657836,0.00011899,2]
[327081309,1715795436717,-87544.47204878,0.000119,2]
[327081310,1715795436727,-15000.0,0.000119,2]
[327081311,1715795436737,-8490.34629533,0.000119,2]
[327081312,1715795436747,-2227.17996015,0.000119,2]
[327081313,1715795436757,-4395.03703088,0.000119,2]
[327081314,1715795436766,-255.93455918,0.000119,2]
[327081315,1715795436775,-200.0,0.000119,2]
[327081316,1715795436785,-151.0,0.000119,2]
[327081317,1715795436794,-151.0,0.000119,2]
[327081318,1715795436804,-565.45615037,0.000119,2]
[327081319,1715795436814,-156.092289,0.000119,2]
[327081320,1715795436824,-224.404414,0.000119,2]
[327081321,1715795436834,-151.0,0.000119,2]
[327081322,1715795436843,-151.0,0.000119,2]
[327081323,1715795436852,-256.553067,0.000119,2]
[327081324,1715795436862,-151.0,0.000119,2]
[327081325,1715795436871,-151.0,0.000119,2]
[327081326,1715795436881,-151.0,0.000119,2]
[327081327,1715795436891,-151.0,0.000119,2]
[327081328,1715795436900,-151.0,0.000119,2]
[327081329,1715795436910,-151.0,0.000119,2]
[327081330,1715795436919,-253.776587,0.000119,2]
[327081331,1715795436929,-253.776587,0.000119,2]
[327081332,1715795436938,-253.776587,0.000119,2]
[327081333,1715795436948,-253.776587,0.000119,2]
[327081334,1715795436957,-216.24507965,0.000119,2]
[327081335,1715795436967,-183.125235,0.000119,2]
[327081336,1715795436977,-153.701402,0.000119,2]
[327081337,1715795436986,-211.531233,0.000119,2]
[327081338,1715795436996,-211.531233,0.000119,2]
[327081339,1715795437005,-211.531233,0.000119,2]
[327081340,1715795437015,-211.531233,0.000119,2]
[327081341,1715795437025,-232.671246,0.000119,2]
[327081342,1715795437034,-232.671246,0.000119,2]
[327081343,1715795437044,-232.671246,0.000119,2]
[327081344,1715795437054,-232.671246,0.000119,2]
[327081345,1715795437063,-151.0,0.000119,2]
[327081346,1715795437073,-151.0,0.000119,2]
[327081347,1715795437082,-151.0,0.000119,2]
[327081348,1715795437091,-151.0,0.000119,2]
[327081349,1715795437101,-151.0,0.000119,2]
[327081350,1715795437111,-151.0,0.000119,2]
[327081351,1715795437120,-151.0,0.000119,2]
[327081352,1715795437129,-151.0,0.000119,2]
[327081353,1715795437138,-185.689765,0.000119,2]
[327081354,1715795437148,-185.689765,0.000119,2]
[327081355,1715795437157,-185.689765,0.000119,2]
[327081356,1715795437167,-185.689765,0.000119,2]
[327081357,1715795437176,-340.630876,0.000119,2]
[327081358,1715795437185,-340.630876,0.000119,2]
[327081359,1715795437195,-340.630876,0.000119,2]
[327081360,1715795437204,-340.630876,0.000119,2]
[327081361,1715795437213,-151.0,0.000119,2]
[327081362,1715795437223,-151.0,0.000119,2]
[327081363,1715795437233,-289.889808,0.000119,2]
[327081364,1715795437243,-289.889808,0.000119,2]
[327081365,1715795437254,-695.005535,0.000119,2]
[327081366,1715795437264,-695.005535,0.000119,2]
[327081367,1715795437274,-289.889808,0.000119,2]
[327081368,1715795437283,-289.889808,0.000119,2]
[327081369,1715795437293,-258.53191,0.000119,2]
[327081370,1715795437304,-258.53191,0.000119,2]
[327081371,1715795437316,-258.53191,0.000119,2]
[327081372,1715795437325,-258.53191,0.000119,2]
[327081373,1715795437335,-1727.802977,0.000119,2]
[327081374,1715795437344,-1727.802977,0.000119,2]
[327081375,1715795437354,-240.797916,0.000119,2]
[327081376,1715795437363,-240.797916,0.000119,2]
[327081377,1715795437373,-1727.802977,0.000119,2]
[327081378,1715795437383,-1727.802977,0.000119,2]
[327081379,1715795437392,-240.797916,0.000119,2]
[327081380,1715795437402,-240.797916,0.000119,2]
[327081382,1715795437411,-3000.0,0.000119,2]
[327081383,1715795437420,-163.267617,0.000119,2]
[327081384,1715795437430,-163.267617,0.000119,2]
[327081385,1715795437439,-163.267617,0.000119,2]
[327081387,1715795437449,-163.267617,0.000119,2]
[327081389,1715795437459,-156.234681,0.000119,2]
[327081391,1715795437468,-156.234681,0.000119,2]
[327081393,1715795437478,-156.234681,0.000119,2]
[327081395,1715795437487,-156.234681,0.000119,2]
[327081396,1715795437496,-151.0,0.000119,2]
[327081397,1715795437506,-200.0,0.000119,4]
[327081398,1715795437516,-270.423056,0.000119,2]
[327081399,1715795437526,-550.601069,0.000119,2]
[327081400,1715795437536,-550.601069,0.000119,2]
[327081401,1715795437546,-550.601069,0.000119,2]
[327081403,1715795437555,-550.601069,0.000119,2]
[327081405,1715795437565,-2929.978951,0.000119,2]
[327081407,1715795437575,-2929.978951,0.000119,2]
[327081409,1715795437584,-2929.978951,0.000119,2]
[327081411,1715795437594,-2929.978951,0.000119,2]
[327081412,1715795437604,-765.450737,0.000119,2]
[327081413,1715795437613,-765.450737,0.000119,2]
[327081414,1715795437623,-765.450737,0.000119,2]
[327081415,1715795437632,-765.450737,0.000119,2]
[327081416,1715795437645,-151.0,0.000119,2]
[327081417,1715795437656,-151.0,0.000119,2]
[327081418,1715795437666,-1080.863667,0.000119,2]
[327081419,1715795437676,-1080.863667,0.000119,2]
[327081420,1715795437686,-1080.863667,0.000119,2]
[327081422,1715795437696,-1080.863667,0.000119,2]
[327081424,1715795437705,-549.075535,0.000119,2]
[327081426,1715795437715,-549.075535,0.000119,2]
[327081428,1715795437728,-228.829077,0.000119,2]
[327081430,1715795437737,-228.829077,0.000119,2]
[327081432,1715795437747,-549.075535,0.000119,2]
[327081434,1715795437757,-549.075535,0.000119,2]
[327081436,1715795437766,-228.829077,0.000119,2]
[327081438,1715795437776,-228.829077,0.000119,2]
[327081440,1715795437786,-1000.0,0.000119,2]
[327081442,1715795437795,-246.985208,0.000119,2]
[327081445,1715795437805,-246.985208,0.000119,2]
[327081446,1715795437816,-3249.337321,0.000119,2]
[327081448,1715795437826,-151.0,0.00011902,2]
[327081451,1715795437837,-151.0,0.00011902,2]
[327081453,1715795437846,-151.0,0.00011902,2]
[327081455,1715795437856,-179.893896,0.00011902,2]
[327081456,1715795437865,-185.689765,0.00011902,2]
[327081458,1715795437874,-185.689765,0.00011902,2]
[327081460,1715795437884,-340.630876,0.00011902,2]
[327081462,1715795437893,-340.630876,0.00011902,2]
[327081464,1715795437903,-151.0,0.00011902,2]
[327081466,1715795437912,-289.889808,0.00011902,2]
[327081468,1715795437922,-695.005535,0.00011902,2]
[327081470,1715795437932,-289.889808,0.00011902,2]
[327081472,1715795437942,-258.53191,0.00011902,2]
[327081474,1715795437952,-258.53191,0.00011902,2]
[327081477,1715795437961,-1727.802977,0.00011902,2]
[327081478,1715795437970,-240.797916,0.00011902,2]
[327081479,1715795437982,-1727.802977,0.00011902,2]
[327081480,1715795437991,-240.797916,0.00011902,2]
[327081481,1715795438000,-151.0,0.0001191,2]
[327081482,1715795438010,-151.0,0.0001191,2]
[327081483,1715795438019,-151.0,0.0001191,2]
[327081484,1715795438029,-237.720751,0.0001191,2]
[327081485,1715795438039,-151.0,0.0001191,2]
[327081486,1715795438049,-253.776587,0.0001191,2]
[327081487,1715795438058,-253.776587,0.0001191,2]
[327081488,1715795438067,-211.531233,0.0001191,2]
[327081489,1715795438077,-211.531233,0.0001191,2]
[327081490,1715795438087,-232.671246,0.0001191,2]
[327081491,1715795438096,-232.671246,0.0001191,2]
[327081492,1715795438105,-163.267617,0.0001191,2]
[327081493,1715795438115,-163.267617,0.0001191,2]
[327081494,1715795438124,-156.234681,0.0001191,2]
[327081495,1715795438134,-156.234681,0.0001191,2]
[327081496,1715795438143,-550.601069,0.0001191,2]
[327081497,1715795438153,-550.601069,0.0001191,2]
[327081498,1715795438162,-2929.978951,0.0001191,2]
[327081499,1715795438172,-2929.978951,0.0001191,2]
[327081501,1715795438181,-765.450737,0.0001191,2]
[327081503,1715795438191,-765.450737,0.0001191,2]
[327081505,1715795438200,-151.0,0.0001191,2]
[327081507,1715795438209,-1080.863667,0.0001191,2]
[327081509,1715795438217,-1080.863667,0.0001191,2]
[327081510,1715795438228,-549.075535,0.0001191,2]